Cogmind - Beta 13 @@@ ROGUE MODE // 2024.07.31 @ 12:59:41 Player: jimmyl Result: Destroyed by V6-76U(R) with Subdweller Laser Performance ------------- Evolutions (0) 0 Regions Visited (2) 400 Robots Destroyed (38) 190 Value Destroyed (981) 981 Prototype IDs (0) 0 Alien Tech Used (0) 0 Bonus (0) 0 TOTAL SCORE: 1571 Bonus ------- None Cogmind --------- Core Integrity 0/250 Matter 139/300 Energy 92/100 System Corruption 4% Temperature Cool (6) Movement Treading (160) Location -10/Subcaves Parts ------- > --- POWER (1) -------- Subdweller Power Source > --- PROPULSION (2) --- Spiked Treads (fused) > --- UTILITY (2) ------ Small Storage Unit Improved Targeting Computer > --- WEAPON (2) ------- Barrage Gun Light Cannon > --- INVENTORY (8) ---- Aluminum Leg Aluminum Leg Wheel EM Pulse Gun Light Cannon Subdweller Shrapnel Launcher Piercing Trap Peak State ------------ > --- POWER ------------ Subdweller Power Source > --- PROPULSION ------- Spiked Treads Spiked Treads > --- UTILITY ---------- Small Storage Unit Improved Targeting Computer > --- WEAPON ----------- Barrage Gun Battle Cannon > --- INVENTORY -------- Aluminum Leg Aluminum Leg Wheel EM Pulse Gun Light Cannon Light Cannon Battle Cannon Subdweller Shrapnel Launcher [Rating: 15] Favorites ----------- Power Light Ion Engine Engine Light Ion Engine Propulsion Light Treads Treads Light Treads Leg Aluminum Leg Utility Small Storage Unit Storage Small Storage Unit Processor Improved Targeting Computer Weapon Light Cannon Ballistic Gun Barrage Gun Ballistic Cannon Light Cannon Launcher Subdweller Shrapnel Launcher Build | -11 -10 -10 ------- Run | Yrd Mat Sub Slots Evolved . | . . . Power . | . . . Propulsion . | . . . Utility . | . . . Weapon . | . . . Parts Attached 22 | . 9 13 Power 2 | . 1 1 Engine 2 | . 1 1 Core . | . . . Reactor . | . . . Propulsion 4 | . 2 2 Treads 4 | . 2 2 Leg . | . . . Wheel . | . . . Hover . | . . . Flight . | . . . Utility 3 | . 2 1 Device . | . . . Storage . | . . . Processor 3 | . 2 1 Hackware . | . . . Protection . | . . . Artifact . | . . . Weapon 13 | . 4 9 Energy Gun . | . . . Energy Cannon . | . . . Ballistic Gun 1 | . . 1 Ballistic Cannon 10 | . 4 6 Launcher 2 | . . 2 Special Weapon . | . . . Impact Weapon . | . . . Slashing Weapon . | . . . Piercing Weapon . | . . . Special Melee Weapon . | . . . Unidentified Prototypes . | . . . Parts Lost 6 | . 1 5 Power 2 | . 1 1 Propulsion 1 | . . 1 Utility 1 | . . 1 Weapon 2 | . . 2 Highest Loss Streak 2 | . 1 2 To Critical Strikes . | . . . Average Slot Usage (%) 94 | . 95 93 Engine 9 | . 12 8 Treads 27 | . 27 27 Storage 14 | . 14 14 Processor 13 | . 12 13 Ballistic Gun 4 | . 2 5 Ballistic Cannon 20 | . 24 18 Launcher 2 | . . 3 Naked Turns . | . . . Heaviest Build 16 | 11 14 16 Greatest Support 40 | 20 40 40 Greatest Overweight (x) . | . . . Average Overweight (x) . | . . . Largest Inventory Capacity 8 | . 8 8 Average Capacity 8 | . 8 8 Most Carried 8 | . 8 8 Average Carried 7 | . 7 7 Final Capacity 8 | 8 8 8 Final Carried 8 | 6 8 7 Class Distribution -------------------- 66% | Mutant 33% | Derelict-Mutant Dominant Class ---------------- Mutant | -10/Materials Derelict-Mutant | -10/Subcaves Resources | -11 -10 -10 ----------- Run | Yrd Mat Sub Matter Collected 1708 | 200 563 945 Remotely . | . . . Salvage Created 991 | . 538 453 Parts 71 | . 34 37 Haulers Intercepted 1 | . 1 . Recyclers Shooed . | . . . Parts Field Recycled . | . . . Retrieved Matter . | . . . Parts Self-Destructed 10 | . . 10 Prevented . | . . . Kills | -11 -10 -10 ------- Run | Yrd Mat Sub Combat Hostiles Destroyed 27 | . 12 15 Guns 3 | . 2 1 Cannons 24 | . 10 14 Classes Destroyed 11 | . 7 4 Worker 3 | . 3 . Hauler 1 | . 1 . Recycler 1 | . 1 . Operator 3 | . 3 . Watcher 3 | . 3 . Swarmer 6 | . 3 3 Grunt 9 | . 9 . Sentry 1 | . . 1 Artisan 1 | . . 1 Cobbler 1 | . . 1 Subdweller 11 | . . 11 Best Kill Streak 4 | . 4 3 Combat Bots Only 4 | . 4 3 Max Kills in Single Turn 1 | . 1 1 Gunslinging . | . . . Exploded . | . . . Melee . | . . . Uniques/NPCs Destroyed . | . . . Combat | -11 -10 -10 -------- Run | Yrd Mat Sub Hostile Shots Fired 95 | . 36 59 Missed 21 | . 7 14 Damage Taken 1441 | . 294 1147 Core 270 | . 62 208 Absorbed by Shields . | . . . Core Remaining (%) 100 | 100 . . Volleys Fired 175 | . 89 86 Largest 2 | . 2 2 Hottest 74 | . 70 74 Shots Fired 310 | . 146 164 Gun 42 | . 12 30 Cannon 262 | . 134 128 Launcher 6 | . . 6 Special . | . . . Kinetic 310 | . 146 164 Thermal . | . . . Explosive . | . . . Electromagnetic . | . . . Robot Hit Streak 16 | . 8 16 Robot Miss Streak 4 | . 3 4 Penetration Max . | . . . Secondary Targets . | . . . Shots Hit Robots 136 | . 62 74 Core Hits 55 | . 26 29 Critical Kills 1 | . 1 . Critical Parts Destroyed . | . . . Critical Strikes 10 | . 5 5 Destroy 1 | . 1 . Blast 9 | . 4 5 Melee Attacks . | . . . Impact . | . . . Slashing . | . . . Piercing . | . . . Sneak Attacks . | . . . Combat Hostiles . | . . . Follow-up Attacks . | . . . Damage Inflicted 2381 | . 1107 1274 Guns 301 | . 67 234 Cannons 2056 | . 1021 1035 Explosions . | . . . Melee . | . . . Ramming 24 | . 19 5 Kinetic 2357 | . 1088 1269 Thermal . | . . . Explosive . | . . . Electromagnetic . | . . . Impact . | . . . Slashing . | . . . Piercing . | . . . Highest Corruption 4 | . 4 4 Average Corruption 3 | . 3 4 Corruption Purged . | . . . Corruption Blocked . | . . . Effects 101 | . 28 73 Message Errors 24 | . 10 14 Matter Fused 21 | . 4 17 Heat Flow Errors 15 | . 1 14 Energy Discharges 13 | . 2 11 Parts Rejected 1 | . 1 . Parts Fused 1 | . . 1 Data Loss (minor) 11 | . 5 6 Data Loss (major) 6 | . 3 3 Misfires 5 | . . 5 Alerts 1 | . . 1 Weapon Failures 3 | . 2 1 Overload Shots . | . . . Overflow Damage 12 | . 12 . Projectiles 12 | . 12 . Explosions . | . . . Melee . | . . . Knockbacks 13 | . 9 4 Impact . | . . . Kinetic 13 | . 9 4 Secondary . | . . . Self-Inflicted Damage 22 | . . 22 Shots 1 | . . 1 Rammed 12 | . 10 2 Targets Rammed 13 | . 11 2 Kicked . | . . . Crushed 1 | . 1 . Highest Temperature 250 | . 213 250 Average Temperature 47 | . 21 106 Received Heat Transfer 574 | . 111 463 Siege Activations . | . . . Robots Corrupted . | . . . Combat Hostiles . | . . . Parts Fried . | . . . Impact Corruptions . | . . . Robots Melted . | . . . Combat Hostiles . | . . . Parts Melted 1 | . . 1 Heat Transferred . | . . . Parts Sabotaged . | . . . Parts Stolen . | . . . Parts Stripped . | . . . Power Chain Reactions . | . . . Alert | -11 -10 -10 ------- Run | Yrd Mat Sub Peak Influence 245 | . 245 . Initial . | . . . Average 56 | . 56 . Maximum Alert Level 1 | . 1 . Low Security (%) 96 | . 96 . Level 1 3 | . 3 . Level 2 . | . . . Level 3 . | . . . Level 4 . | . . . Level 5 . | . . . High Security . | . . . Max Security . | . . . Squads Dispatched 3 | . 3 . Investigation . | . . . Extermination . | . . . Reinforcement 3 | . 3 . Assault . | . . . Garrison . | . . . Intercept . | . . . Searches Triggered . | . . . Construction Impeded . | . . . Haulers Reinforced . | . . . Active Scanning Responses . | . . . Cargo Convoy Interrupts . | . . . Stealth | -11 -10 -10 --------- Run | Yrd Mat Sub Distress Signals 3 | . 3 . Communications Jammed . | . . . Distress Signals . | . . . Times Spotted 44 | . 28 16 Peak Tracking Total 4 | . 4 3 Tactical Retreats 4 | . 4 . Traps | -11 -10 -10 ------- Run | Yrd Mat Sub Traps Triggered 7 | . 3 4 Indirectly . | . . . Trap Hack Attempts . | . . . Triggered . | . . . Disarmed . | . . . Reprogrammed . | . . . Reused . | . . . Traps Extracted . | . . . Installed . | . . . Triggered . | . . . Most Traps Carried 1 | . . 1 Machines | -11 -10 -10 ---------- Run | Yrd Mat Sub Machines Disabled 1 | . 1 . Max in Single Turn 1 | . 1 . Machines Repaired . | . . . Machines Dismantled . | . . . Machines Sabotaged . | . . . Overloaded Fab Kills . | . . . Hacking | -11 -10 -10 --------- Run | Yrd Mat Sub Machines Accessed 2 | . 1 1 Terminals 1 | . 1 . Fabricators . | . . . Repair Stations . | . . . Recycling Units . | . . . Scanalyzers . | . . . Garrison Access . | . . . Total Hacks 6 | . 3 3 Successful 4 | . 1 3 Failed 2 | . 2 . Catastrophic 1 | . 1 . Database Lockouts . | . . . Manual . | . . . Terminals 3 | . 3 . Fabricators . | . . . Repair Stations . | . . . Recycling Units . | . . . Scanalyzers . | . . . Garrison Access . | . . . Terminal Hacks 4 | . 1 3 Record 3 | . . 3 Locate Traps 1 | . 1 . Fabricator Hacks . | . . . Repair Station Hacks . | . . . Recycling Unit Hacks . | . . . Scanalyzer . | . . . Garrison Access Hacks . | . . . Unauthorized Hacks . | . . . Terminals . | . . . Fabricators . | . . . Repair Stations . | . . . Recycling Units . | . . . Scanalyzers . | . . . Garrison Access . | . . . Data Cores Recovered . | . . . Used . | . . . Hacking Detections 1 | . 1 . Full Trace Events 1 | . 1 . Feedback Events . | . . . Feedback Blocked . | . . . Robot Schematics Acquired . | . . . Robots Built . | . . . Authchips . | . . . Time . | . . . Total Robot Build Rating . | . . . Part Schematics Acquired . | . . . Parts Built . | . . . Authchips . | . . . Time . | . . . Total Part Build Rating . | . . . Parts Repaired . | . . . Time . | . . . Parts Recycled . | . . . Recycled Matter . | . . . Retrieved Matter . | . . . Retrieved Components . | . . . Parts Scanalyzed . | . . . Part Schematics Acquired . | . . . Parts Damaged . | . . . Bothacking | -11 -10 -10 ------------ Run | Yrd Mat Sub Used RIF Installer . | . . . Robots Hacked . | . . . Non-combat . | . . . Combat . | . . . Robot Hacks Applied . | . . . Relay Couplers Released . | . . . Fabnet Peak Effective % . | . . . Robots Rewired . | . . . Allies Hacked . | . . . Hacks Repelled . | . . . Allies | -11 -10 -10 -------- Run | Yrd Mat Sub Total Allies . | . . . Largest Group . | . . . Highest-Rated Group . | . . . Highest-Rated Ally . | . . . Total Orders . | . . . Ally Attacks . | . . . Total Damage . | . . . Kills . | . . . Allies Corrupted . | . . . Allies Melted . | . . . Intel | -11 -10 -10 ------- Run | Yrd Mat Sub Robot Analysis Total . | . . . Derelict Logs Recovered 2 | . . 2 Drone Launches . | . . . Drone Recoveries . | . . . Exploration | -11 -10 -10 ------------- Run | Yrd Mat Sub Turns Passed 5480 | . 1910 3570 Spaces Moved 2728 | 1 691 2036 Core . | . . . Treads 2699 | . 663 2036 Legs 29 | 1 28 . Wheels . | . . . Hover . | . . . Flight . | . . . Fastest Speed 120 | 120 120 160 Average Speed 159 | 120 158 160 Slowest Speed 160 | 120 160 160 Overloaded Moves . | . . . Propulsion Burnouts . | . . . Robots Hopped . | . . . Cave-ins Triggered . | . . . Exploration Rate (%) 58 | 2 87 86 Regions Visited 2 Branch Regions 1 Pre-discovered Areas 1 | . . 1 Known Exits Taken . | . . . Unknown Exits Taken 2 | 1 1 . Scrap Searched 8 | . . 8 Spaces Dug 24 | . 3 21 Terrain Destroyed 102 | . 3 99 Melee . | . . . Projectile 4 | . 3 1 AOE 98 | . . 98 Terrain Rammed . | . . . Walls Destroyed . | . . . Machines Disabled . | . . . Actions | -11 -10 -10 --------- Run | Yrd Mat Sub Total 3540 | . 1353 2187 Wait 580 | . 541 39 Move 2726 | . 690 2036 Hop . | . . . Pick Up 11 | . 7 4 Fast Attach 4 | . 2 2 Attach 5 | . 2 3 Detach 1 | . 1 . Swap 13 | . 5 8 Drop 12 | . 5 7 Fire 175 | . 89 86 Melee . | . . . Ram . | . . . Kick . | . . . Crush 13 | . 11 2 Escape Stasis . | . . . Rewire . | . . . Trap . | . . . Miscellaneous . | . . . Route ------- -11/Scrapyard -10/Materials (discovered 5 exits: [*Mat x2] / [*Min x2] / *Sub) -10/Subcaves (discovered 2 exits: [*Mat x2]) History --------- Turn | Location | Event 1 | -11/Scrapyard | Discovered new exit (range 0) 1 | -11/Scrapyard | Entered Materials 308 | -10/Materials | Build established: Mutant 417 | -10/Materials | Discovered new exit (range 10) 529 | -10/Materials | Discovered new exit (range 3) 1227 | -10/Materials | Discovered new exit (range 6) 1836 | -10/Materials | Discovered new exit (range 15) 1897 | -10/Materials | Discovered new exit (range 10) 1911 | -10/Materials | Entered Subcaves 2195 | -10/Subcaves | Disturbed a concealed Subdweller 2359 | -10/Subcaves | Shifting Twisted Machinery released Spk. Treads 2431 | -10/Subcaves | Shifting Twisted Machinery released Sub. Shrapnel Launcher 2840 | -10/Subcaves | Shifting Twisted Machinery released Battle Rifle 3405 | -10/Subcaves | Core integrity fell below 50% 3875 | -10/Subcaves | A swath of the cavern ceiling suddenly collapsed 3969 | -10/Subcaves | Build established: Derelict-Mutant 3988 | -10/Subcaves | Discovered new exit (range 12) 3990 | -10/Subcaves | Shifting Twisted Machinery released Battle Cannon 3997 | -10/Subcaves | Shifting Twisted Machinery released Sub. Monowheel 4063 | -10/Subcaves | Visited Clippyterm 4647 | -10/Subcaves | Learned Materials security intel 5114 | -10/Subcaves | Discovered new exit (range 10) 5239 | -10/Subcaves | Core integrity fell below 20% 5444 | -10/Subcaves | Learned location of Storage (-9) 5466 | -10/Subcaves | Visited 4L-MR0's lab 5481 | -10/Subcaves | Destroyed by V6-76U(R) with Subdweller Laser Last Messages --------------- 05250_ Acquired 7 matter. 05260_ Acquired 5 matter. 05279_ System corrupted: Matter fused (-9). 05304_ System corrupted: Heat flow error (+217). 05367_ System corrupted: FCS attempts to trigger Battle Cannon. 05367_ System corrupted: Battle Cannon misfires. 05406_ FT=6 IBZ# METLMIW5JUXOHPYD 05423_ 4J-5UB(O) cries out in pain. 05423_ 4J-5UB(O) destroyed. 05428_ Acquired 39 matter. 05439_ Triggered Piercing Trap. 05439_ Spikes shoot up from the floor. 05439_ Critical hit (Impale). 05444_ Acquired derelict log, extracted data. World map updated: -9/Storage. 05461_ System corrupted: Energy discharge (-22). 05465_ VC-JV9(R) destroyed. 05467_ Spk. Treads destroyed. 05474_ Battle Cannon destroyed. Map ----- +----------------------------------------------------+ | | | | | | | | | | | | | | | | | | | | | | | | | | | | | | | | | | | | | | | | | ?????????????????????????????????????????????????? | | ????????????????????????#####????????????????????? | | ????????????????????????#<<<##???????????????????? | | ???????????????#!" ????##%<< #???????????????????? | | ?????????????????# =[#R* #???????????????????? | | ?????????????????""X"%!R%@&< #???????????????????? | | ?????????????????""""""#<< #???????????????????? | | ??????????????????#????##<< <#???????????????????? | | ???????????????????????##< <<#???????????????????? | | ??????????????????######< <<<#???????????????????? | | ??????????????????# # < ##???????????????????? | | ??????????????????## #????????????????????? | | ??????????????????# ## ##????????????????????? | | ????????????????###" "#####?????????????????????? | | ??????????????### " ### ##??????????????????? | | ?????????????## #????????????????? | | ???????##???## = #### #???????????????? | | ??##?### #?## ! #???????????????? | | ## ### ## ## #????????????????? | | # ## #?### ##????????????????? | | # #### ##????? ##?????????????????? | | ### #### ##??????? #??????????????????? | | #??# #?????????#??????????????????? | | ##?###????????????????????????????? | | "#???###??????????????????????????? | | ## #?## #??????????????????????????? | | ## ### #??????????????????????????? | | ## ## #??????????????????????????? | | ###### #??????????????????????????? | | ### #?## #??????????????????????????? | +----------------------------------------------------+ Best States ------------- Heat Dissipation 25 Energy Generation 15 Energy Capacity 200 Matter Stores 300 Matter Capacity 300 Sight Range 16 Terrain Scan Density 10 Evasion (%) 55 Targeting Accuracy 6 Recoil Reduction 2 Item Schematics ----------------- None Robot Schematics ------------------ None Fabricated ------------ Nothing Alien Tech Used ----------------- None Achievements -------------- None Challenges ------------ None Game ------ Seed XenonAuthchipKinecellerator Manual? 0 Play Time 00:21:30 Cumulative 80.0 hours Start 2024.07.31 @ 12:38:13 End 2024.07.31 @ 12:59:41 Sessions 1 Manual Loads 0 Difficulty Rogue Special Mode None Game No. 138 Rogue 138 Adventurer 0 Explorer 0 Win Type - Total 0 Types 0/0/0/0/0/0/0/0/0 Lore% 51 Gallery% 60 Achievement% 44 Wizard Run 0 Options --------- Layout 1 ASCII 0 Keyboard 0 Movement Mouse Keybinds 0 Fullscreen 2 Font 20/SmallcapsGlow Map View 54x42 Zoom Use 0% Tactical HUD 1 Map Filters NONE Filters NONE Steam 0 RUN: 999fb519-1987-4b56-87bf-df940afd11db